[Event "SS Manhem Chess Week 2022: Goteborg Open"]
[Site "Schackcentrum, Vegagatan 20, Gothenburg, Sweden"]
[Date "2022.08.14"]
[Round "8.6"]
[White "Westlund, Tim"]
[Black "Mohammed, Safian Haj"]
[Result "0-1"]
[TimeControl "15 minutes + 5 seconds per move from move one (Round 1 - 4) / 90 minutes + 30 seconds per move from move one (Round 5 - 8)"]
[WhiteFideId "1754718"]
[BlackFideId "1729276"]
[WhiteElo "1760"]
[BlackElo "1794"]

1. e4 {[%clk 01:30:56]} {[%emt 00:00:04]} c5 {[%clk 01:30:33]} {[%emt
00:00:27]} 2. Nf3 {[%clk 01:31:00]} {[%emt 00:00:24]} Nc6 {[%clk 01:30:56]}
{[%emt 00:00:09]} 3. Bb5 {[%clk 01:30:43]} {[%emt 00:00:45]} g6 {[%clk
01:29:42]} {[%emt 00:01:44]} 4. Bxc6 {[%clk 01:30:19]} {[%emt 00:00:54]} dxc6
{[%clk 01:30:00]} {[%emt 00:00:12]} 5. d3 {[%clk 01:29:58]} {[%emt 00:00:51]}
Bg7 {[%clk 01:30:22]} {[%emt 00:00:09]} 6. h3 {[%clk 01:29:11]} {[%emt
00:01:16]} Nf6 {[%clk 01:30:21]} {[%emt 00:00:29]} 7. Nc3 {[%clk 01:28:01]}
{[%emt 00:01:42]} Nd7 {[%clk 01:24:31]} {[%emt 00:06:21]} 8. Be3 {[%clk
01:27:59]} {[%emt 00:00:32]} b6 {[%clk 01:23:48]} {[%emt 00:01:13]} 9. Qd2
{[%clk 01:27:09]} {[%emt 00:01:20]} h6 {[%clk 01:23:08]} {[%emt 00:01:10]} 10.
O-O {[%clk 01:26:13]} {[%emt 00:01:25]} Ba6 {[%clk 01:22:07]} {[%emt 00:01:31]}
11. Nh2 {[%clk 01:24:32]} {[%emt 00:02:11]} e5 {[%clk 01:21:36]} {[%emt
00:01:01]} 12. f4 {[%clk 01:20:13]} {[%emt 00:04:50]} exf4 {[%clk 01:21:19]}
{[%emt 00:00:47]} 13. Bxf4 {[%clk 01:18:57]} {[%emt 00:01:46]} g5 {[%clk
01:20:58]} {[%emt 00:00:51]} 14. Be3 {[%clk 01:17:31]} {[%emt 00:01:56]} Qc7
{[%clk 01:11:47]} {[%emt 00:09:40]} 15. Rf5 {[%clk 01:13:11]} {[%emt 00:04:49]}
Bc8 {[%clk 01:11:59]} {[%emt 00:00:20]} 16. Raf1 {[%clk 01:09:20]} {[%emt
00:04:13]} Ne5 {[%clk 01:11:52]} {[%emt 00:00:44]} 17. R5f2 {[%clk 01:09:11]}
{[%emt 00:00:33]} Be6 {[%emt 00:02:36]} 18. a3 {[%clk 01:04:44]} {[%emt
00:02:51]} O-O-O {[%clk 01:06:07]} {[%emt 00:06:22]} 19. Qe2 {[%clk 01:02:24]}
{[%emt 00:02:49]} Ng6 {[%clk 01:01:36]} {[%emt 00:05:01]} 20. Na4 {[%clk
00:58:37]} {[%emt 00:04:18]} Be5 {[%clk 00:57:25]} {[%emt 00:04:40]} 21. Nf3
{[%clk 00:56:46]} {[%emt 00:02:20]} Bg3 {[%clk 00:56:44]} {[%emt 00:01:12]} 22.
b4 {[%clk 00:56:34]} {[%emt 00:00:43]} Bxf2+ {[%clk 00:57:01]} {[%emt
00:00:12]} 23. Qxf2 {[%clk 00:56:25]} {[%emt 00:00:37]} Nf4 {[%clk 00:54:51]}
{[%emt 00:02:40]} 24. Bxf4 {[%clk 00:53:51]} {[%emt 00:03:05]} gxf4 {[%clk
00:55:04]} {[%emt 00:00:17]} 25. bxc5 {[%clk 00:53:09]} {[%emt 00:01:12]} b5
{[%clk 00:55:24]} {[%emt 00:00:10]} 26. Nb2 {[%clk 00:52:19]} {[%emt 00:01:20]}
Rhg8 {[%clk 00:55:35]} {[%emt 00:00:18]} 27. Kh1 {[%clk 00:52:37]} {[%emt
00:00:12]} Rg3 {[%clk 00:49:30]} {[%emt 00:06:35]} 28. Kh2 {[%clk 00:52:15]}
{[%emt 00:00:52]} Rdg8 {[%clk 00:49:15]} {[%emt 00:00:43]} 29. Rg1 {[%clk
00:52:25]} {[%emt 00:00:20]} Qd7 {[%clk 00:45:00]} {[%emt 00:04:45]} 30. Ne5
{[%clk 00:51:39]} {[%emt 00:01:15]} Qe7 {[%clk 00:40:53]} {[%emt 00:04:38]} 31.
Qxf4 {[%clk 00:50:08]} {[%emt 00:02:00]} Qxc5 {[%clk 00:40:19]} {[%emt
00:01:06]} 32. Ng4 {[%clk 00:49:35]} {[%emt 00:01:02]} R3xg4 {[%clk 00:28:06]}
{[%emt 00:12:42]} 33. hxg4 {[%clk 00:49:31]} {[%emt 00:00:34]} Rxg4 {[%clk
00:28:26]} {[%emt 00:00:11]} 34. Qxh6 {[%clk 00:46:11]} {[%emt 00:03:48]} Qe5+
{[%clk 00:28:19]} {[%emt 00:00:39]} 35. g3 {[%clk 00:45:04]} {[%emt 00:01:36]}
Qxb2 {[%clk 00:28:38]} {[%emt 00:00:12]} 36. Qf8+ {[%clk 00:44:34]} {[%emt
00:00:59]} Kb7 {[%clk 00:28:27]} {[%emt 00:00:43]} 37. Qe7+ {[%clk 00:44:10]}
{[%emt 00:00:51]} Ka6 {[%clk 00:28:34]} {[%emt 00:00:27]} 38. Qc5 {[%clk
00:44:03]} {[%emt 00:00:30]} Kb7 {[%clk 00:28:34]} {[%emt 00:00:36]} 39. Qe7+
{[%clk 00:43:24]} {[%emt 00:01:06]} Ka6 {[%clk 00:27:29]} {[%emt 00:01:38]} 40.
Qc5 {[%clk 00:43:37]} {[%emt 00:00:17]} Qh8+ {[%clk 00:27:47]} {[%emt
00:00:11]} 41. Kg2 {[%clk 00:43:43]} {[%emt 00:00:15]} Kb7 {[%clk 00:25:58]}
{[%emt 00:02:28]} 42. Qe7+ {[%clk 00:42:50]} {[%emt 00:01:21]} Kb6 {[%clk
00:26:03]} {[%emt 00:00:29]} 43. a4 {[%clk 00:41:40]} {[%emt 00:01:40]} Qb8
{[%clk 00:26:09]} {[%emt 00:00:24]} 44. Kf2 {[%clk 00:40:15]} {[%emt 00:01:54]}
Qc7 {[%clk 00:24:03]} {[%emt 00:02:38]} 45. a5+ {[%clk 00:39:45]} {[%emt
00:01:00]} Kb7 {[%clk 00:24:23]} {[%emt 00:00:09]} 46. a6+ {[%clk 00:39:37]}
{[%emt 00:00:38]} Kb8 {[%clk 00:23:16]} {[%emt 00:01:37]} 47. Qf8+ {[%clk
00:39:03]} {[%emt 00:01:01]} Bc8 {[%clk 00:23:15]} {[%emt 00:00:34]} 48. Kf3
{[%clk 00:37:07]} {[%emt 00:02:26]} Rg6 {[%clk 00:21:56]} {[%emt 00:01:48]} 49.
Qh8 {[%clk 00:36:31]} {[%emt 00:01:01]} Qd6 {[%clk 00:21:39]} {[%emt 00:00:53]}
50. e5 {[%clk 00:34:53]} {[%emt 00:02:07]} Qd5+ {[%clk 00:21:59]} {[%emt
00:00:10]} 51. Ke2 {[%clk 00:34:48]} {[%emt 00:00:34]} Re6 {[%clk 00:21:51]}
{[%emt 00:00:40]} 52. Kd2 {[%clk 00:33:03]} {[%emt 00:02:15]} Qxe5 {[%clk
00:22:07]} {[%emt 00:00:14]} 53. Qxe5+ {[%clk 00:32:59]} {[%emt 00:00:35]} Rxe5
{[%clk 00:22:30]} {[%emt 00:00:07]} 54. Rf1 {[%clk 00:33:10]} {[%emt 00:00:18]}
Rf5 {[%clk 00:22:38]} {[%emt 00:00:21]} 55. Re1 {[%clk 00:33:14]} {[%emt
00:00:27]} Bxa6 {[%clk 00:22:35]} {[%emt 00:00:34]} 56. Re8+ {[%clk 00:33:37]}
{[%emt 00:00:07]} Kc7 {[%clk 00:22:59]} {[%emt 00:00:06]} 57. Re7+ {[%clk
00:33:55]} {[%emt 00:00:11]} Kb6 {[%clk 00:23:17]} {[%emt 00:00:14]} 58. Kc3
{[%clk 00:33:59]} {[%emt 00:00:24]} Bc8 {[%clk 00:23:26]} {[%emt 00:00:20]} 59.
g4 {[%clk 00:34:08]} {[%emt 00:00:22]} Rf3 {[%clk 00:23:40]} {[%emt 00:00:16]}
60. g5 {[%clk 00:34:30]} {[%emt 00:00:08]} a5 {[%clk 00:23:45]} {[%emt
00:00:25]} 61. Kb3 {[%clk 00:34:40]} {[%emt 00:00:20]} Rf5 {[%clk 00:23:35]}
{[%emt 00:00:39]} 62. c4 {[%clk 00:34:45]} {[%emt 00:00:24]} bxc4+ {[%clk
00:23:36]} {[%emt 00:00:30]} 63. dxc4 {[%clk 00:35:00]} {[%emt 00:00:15]} Rf3+
{[%clk 00:23:01]} {[%emt 00:01:05]} 64. Ka4 {[%clk 00:35:05]} {[%emt 00:00:25]}
Rf5 {[%clk 00:22:35]} {[%emt 00:00:53]} 65. Re3 {[%clk 00:34:05]} {[%emt
00:01:33]} Rxg5 {[%clk 00:22:37]} {[%emt 00:00:29]} 66. Rf3 {[%clk 00:33:43]}
{[%emt 00:00:51]} Be6 {[%clk 00:22:49]} {[%emt 00:00:17]} 67. c5+ {[%clk
00:32:26]} {[%emt 00:01:48]} Rxc5 {[%clk 00:22:57]} {[%emt 00:00:20]} 68. Rc3
{[%clk 00:32:27]} {[%emt 00:00:30]} Rc4+ {[%clk 00:22:41]} {[%emt 00:00:46]}
0-1

[Event "SS Manhem Chess Week 2022: Goteborg Open"]
[Site "Schackcentrum, Vegagatan 20, Gothenburg, Sweden"]
[Date "2022.08.14"]
[Round "8.8"]
[White "Eriksson, Joel"]
[Black "Josefsson, Ivar"]
[Result "1-0"]
[TimeControl "15 minutes + 5 seconds per move from move one (Round 1 - 4) / 90 minutes + 30 seconds per move from move one (Round 5 - 8)"]
[WhiteFideId "1729233"]
[BlackFideId "1766040"]
[WhiteElo "1949"]
[BlackElo "1565"]

1. e4 {[%clk 01:30:57]} {[%emt 00:00:02]} e5 {[%clk 01:30:56]} {[%emt
00:00:04]} 2. Bc4 {[%clk 01:31:23]} {[%emt 00:00:05]} Nf6 {[%clk 01:31:15]}
{[%emt 00:00:11]} 3. d4 {[%clk 01:31:48]} {[%emt 00:00:05]} exd4 {[%clk
01:31:40]} {[%emt 00:00:06]} 4. Nf3 {[%clk 01:32:13]} {[%emt 00:00:05]} Bb4+
{[%clk 01:31:43]} {[%emt 00:00:27]} 5. c3 {[%clk 01:32:37]} {[%emt 00:00:06]}
dxc3 {[%clk 01:32:05]} {[%emt 00:00:08]} 6. O-O {[%clk 01:33:01]} {[%emt
00:00:06]} O-O {[%clk 01:27:59]} {[%emt 00:04:36]} 7. e5 {[%clk 01:32:07]}
{[%emt 00:01:24]} Ne4 {[%clk 01:24:56]} {[%emt 00:03:33]} 8. a3 {[%clk
01:28:33]} {[%emt 00:04:05]} Be7 {[%clk 01:23:39]} {[%emt 00:01:47]} 9. Bd5
{[%clk 01:27:19]} {[%emt 00:01:44]} Nc5 {[%clk 01:23:09]} {[%emt 00:00:59]} 10.
Nxc3 {[%clk 01:26:36]} {[%emt 00:01:14]} d6 {[%clk 01:20:31]} {[%emt 00:03:07]}
11. b4 {[%clk 01:14:42]} {[%emt 00:12:24]} Ne6 {[%clk 01:17:50]} {[%emt
00:03:11]} 12. exd6 {[%clk 01:14:18]} {[%emt 00:00:54]} Bxd6 {[%clk 01:13:36]}
{[%emt 00:04:44]} 13. Ne4 {[%clk 01:05:08]} {[%emt 00:09:40]} Nc6 {[%clk
01:08:04]} {[%emt 00:06:01]} 14. Bb2 {[%clk 01:00:20]} {[%emt 00:05:17]} Ne7
{[%clk 01:05:56]} {[%emt 00:02:38]} 15. Ba2 {[%clk 00:55:53]} {[%emt 00:04:56]}
Bf4 {[%clk 00:59:56]} {[%emt 00:06:30]} 16. Qc2 {[%clk 00:55:50]} {[%emt
00:00:34]} c6 {[%clk 00:58:33]} {[%emt 00:01:53]} 17. Rad1 {[%clk 00:54:47]}
{[%emt 00:01:32]} Qc7 {[%clk 00:58:47]} {[%emt 00:00:16]} 18. Bb1 {[%clk
00:46:56]} {[%emt 00:08:21]} Ng6 {[%clk 00:57:57]} {[%emt 00:01:20]} 19. h4
{[%clk 00:46:17]} {[%emt 00:01:09]} f5 {[%clk 00:47:55]} {[%emt 00:10:32]} 20.
Nc5 {[%clk 00:41:37]} {[%emt 00:05:11]} Nxc5 {[%clk 00:45:45]} {[%emt
00:02:40]} 21. Qxc5 {[%clk 00:41:31]} {[%emt 00:00:36]} Be6 {[%clk 00:44:55]}
{[%emt 00:01:19]} 22. h5 {[%clk 00:39:53]} {[%emt 00:02:08]} Ne7 {[%clk
00:42:48]} {[%emt 00:02:37]} 23. Rfe1 {[%clk 00:38:35]} {[%emt 00:01:49]} Rad8
{[%clk 00:37:21]} {[%emt 00:05:57]} 24. Rxd8 {[%emt 00:01:21]} Rxd8 {[%clk
00:33:02]} {[%emt 00:04:47]} 25. Rxe6 {[%clk 00:36:54]} {[%emt 00:01:21]} Rd1+
{[%emt 00:00:48]} 26. Re1 {[%emt 00:00:24]} Qd7 {[%clk 00:30:40]} {[%emt
00:01:40]} 27. Qc3 {[%clk 00:35:32]} {[%emt 00:01:52]} Rxe1+ {[%clk 00:29:38]}
{[%emt 00:01:32]} 28. Qxe1 {[%clk 00:35:24]} {[%emt 00:00:38]} Nd5 {[%clk
00:28:18]} {[%emt 00:01:51]} 29. g3 {[%clk 00:34:44]} {[%emt 00:01:09]} 1-0

[Event "SS Manhem Chess Week 2022: Goteborg Open"]
[Site "Schackcentrum, Vegagatan 20, Gothenburg, Sweden"]
[Date "2022.08.14"]
[Round "8.9"]
[White "Johansson, Jan"]
[Black "Wickstrom, Lars"]
[Result "1/2-1/2"]
[TimeControl "15 minutes + 5 seconds per move from move one (Round 1 - 4) / 90 minutes + 30 seconds per move from move one (Round 5 - 8)"]
[WhiteFideId "1747568"]
[BlackFideId "1770837"]
[WhiteElo "1666"]
[BlackElo "1753"]

1. d4 {[%clk 01:30:56]} {[%emt 00:00:04]} d5 {[%clk 01:30:16]} {[%emt
00:00:45]} 2. Bf4 {[%clk 01:31:17]} {[%emt 00:00:09]} Nf6 {[%clk 01:30:09]}
{[%emt 00:00:37]} 3. e3 {[%clk 01:31:37]} {[%emt 00:00:09]} c6 {[%clk
01:29:13]} {[%emt 00:01:27]} 4. c3 {[%clk 01:30:56]} {[%emt 00:01:11]} Bf5
{[%clk 01:29:14]} {[%emt 00:00:29]} 5. Qb3 {[%clk 01:30:14]} {[%emt 00:01:12]}
Qb6 {[%clk 01:29:14]} {[%emt 00:00:31]} 6. Nd2 {[%clk 01:30:15]} {[%emt
00:00:29]} Nbd7 {[%clk 01:27:42]} {[%emt 00:02:01]} 7. c4 {[%clk 01:30:05]}
{[%emt 00:00:41]} dxc4 {[%clk 01:24:35]} {[%emt 00:03:36]} 8. Bxc4 {[%clk
01:30:05]} {[%emt 00:00:30]} e6 {[%clk 01:23:47]} {[%emt 00:01:18]} 9. h3
{[%clk 01:29:44]} {[%emt 00:00:50]} Bb4 {[%clk 01:22:58]} {[%emt 00:01:20]} 10.
Ngf3 {[%clk 01:29:31]} {[%emt 00:00:43]} Ne4 {[%clk 01:16:51]} {[%emt
00:06:37]} 11. Rd1 {[%clk 01:24:49]} {[%emt 00:05:13]} Ndf6 {[%clk 01:15:19]}
{[%emt 00:02:00]} 12. a3 {[%clk 01:24:58]} {[%emt 00:00:22]} Be7 {[%clk
01:12:50]} {[%emt 00:02:58]} 13. O-O {[%clk 01:22:31]} {[%emt 00:02:55]} h6
{[%clk 01:11:43]} {[%emt 00:01:39]} 14. Rc1 {[%clk 01:18:17]} {[%emt 00:04:45]}
O-O {[%clk 01:10:40]} {[%emt 00:01:33]} 15. Rfd1 {[%clk 01:18:09]} {[%emt
00:00:37]} c5 {[%clk 01:04:36]} {[%emt 00:06:34]} 16. Nxe4 {[%clk 01:10:22]}
{[%emt 00:08:17]} Bxe4 {[%clk 01:03:11]} {[%emt 00:01:55]} 17. Qxb6 {[%clk
01:07:18]} {[%emt 00:03:34]} axb6 {[%clk 01:03:33]} {[%emt 00:00:09]} 18. Nd2
{[%clk 01:06:03]} {[%emt 00:01:44]} Bc6 {[%clk 01:02:27]} {[%emt 00:01:36]} 19.
Bf1 {[%clk 01:04:24]} {[%emt 00:02:08]} Nd5 {[%clk 00:59:07]} {[%emt 00:03:51]}
20. Bg3 {[%clk 01:04:22]} {[%emt 00:00:31]} cxd4 {[%clk 00:58:29]} {[%emt
00:01:08]} 21. exd4 {[%clk 01:04:42]} {[%emt 00:00:09]} b5 {[%clk 00:58:20]}
{[%emt 00:00:39]} 22. Ne4 {[%clk 01:01:53]} {[%emt 00:03:19]} b4 {[%clk
00:55:23]} {[%emt 00:03:28]} 23. axb4 {[%clk 01:01:12]} {[%emt 00:01:12]} Bxb4
{[%clk 00:53:22]} {[%emt 00:02:31]} 24. Ra1 {[%clk 00:58:23]} {[%emt 00:03:19]}
Be7 {[%clk 00:49:13]} {[%emt 00:04:38]} 25. Nc5 {[%clk 00:57:37]} {[%emt
00:01:16]} Rfd8 {[%clk 00:46:47]} {[%emt 00:02:56]} 26. Be5 {[%clk 00:57:11]}
1/2-1/2

[Event "SS Manhem Chess Week 2022: Goteborg Open"]
[Site "Schackcentrum, Vegagatan 20, Gothenburg, Sweden"]
[Date "2022.08.14"]
[Round "8.10"]
[White "Sundin, Sven-Ingvar"]
[Black "Lindholm, Marcus"]
[Result "1/2-1/2"]
[TimeControl "15 minutes + 5 seconds per move from move one (Round 1 - 4) / 90 minutes + 30 seconds per move from move one (Round 5 - 8)"]
[WhiteFideId "1724517"]
[BlackFideId "1743473"]
[WhiteElo "1637"]
[BlackElo "1666"]

1. e4 {[%clk 01:30:57]} {[%emt 00:00:03]} c5 {[%clk 01:30:48]} {[%emt
00:00:12]} 2. Nf3 {[%clk 01:31:14]} {[%emt 00:00:12]} e6 {[%clk 01:30:43]}
{[%emt 00:00:35]} 3. c3 {[%clk 01:31:09]} {[%emt 00:00:36]} d5 {[%clk
01:29:58]} {[%emt 00:01:16]} 4. exd5 {[%clk 01:30:30]} {[%emt 00:01:08]} exd5
{[%clk 01:30:06]} {[%emt 00:00:21]} 5. d4 {[%clk 01:30:42]} {[%emt 00:00:18]}
Nf6 {[%clk 01:29:26]} {[%emt 00:01:11]} 6. Be2 {[%clk 01:30:22]} {[%emt
00:00:50]} Nc6 {[%clk 01:28:39]} {[%emt 00:01:17]} 7. O-O {[%clk 01:30:19]}
{[%emt 00:00:32]} cxd4 {[%clk 01:27:56]} {[%emt 00:01:15]} 8. Nxd4 {[%clk
01:30:25]} {[%emt 00:00:22]} Bc5 {[%clk 01:27:05]} {[%emt 00:01:21]} 9. Be3
{[%clk 01:30:18]} {[%emt 00:00:37]} Qb6 {[%clk 01:26:14]} {[%emt 00:01:22]} 10.
b4 {[%clk 01:28:36]} {[%emt 00:02:11]} Bxd4 {[%clk 01:24:18]} {[%emt 00:02:26]}
11. Bxd4 {[%clk 01:28:51]} {[%emt 00:00:16]} Nxd4 {[%clk 01:24:38]} {[%emt
00:00:10]} 12. Qxd4 {[%clk 01:29:11]} {[%emt 00:00:09]} Qxd4 {[%clk 01:25:01]}
{[%emt 00:00:08]} 13. cxd4 {[%clk 01:29:28]} {[%emt 00:00:13]} O-O {[%clk
01:25:01]} {[%emt 00:00:29]} 14. Nc3 {[%clk 01:28:41]} {[%emt 00:01:17]} Be6
{[%clk 01:24:54]} {[%emt 00:00:37]} 15. f3 {[%clk 01:23:17]} {[%emt 00:05:53]}
a6 {[%clk 01:23:42]} {[%emt 00:01:43]} 16. b5 {[%clk 01:22:00]} {[%emt
00:01:47]} axb5 {[%clk 01:23:24]} {[%emt 00:00:49]} 17. Nxb5 {[%clk 01:22:13]}
{[%emt 00:00:17]} Ra4 {[%clk 01:21:25]} {[%emt 00:02:29]} 18. Rfd1 {[%clk
01:21:40]} {[%emt 00:01:01]} Rfa8 {[%clk 01:21:04]} {[%emt 00:00:53]} 19. Rd2
{[%clk 01:19:05]} {[%emt 00:03:05]} Nd7 {[%clk 01:15:51]} {[%emt 00:05:43]} 20.
Bd1 {[%clk 01:18:53]} {[%emt 00:00:42]} R4a5 {[%clk 01:15:02]} {[%emt
00:01:21]} 21. Nc3 {[%clk 01:19:05]} {[%emt 00:00:16]} R8a7 {[%clk 01:09:58]}
{[%emt 00:05:36]} 22. Bb3 {[%clk 01:17:27]} {[%emt 00:02:08]} Nb6 {[%clk
01:09:10]} {[%emt 00:01:17]} 23. Re2 {[%clk 01:13:32]} {[%emt 00:04:24]} g6
{[%clk 01:06:44]} {[%emt 00:02:57]} 24. Rae1 {[%clk 01:11:47]} {[%emt
00:02:14]} Nc4 {[%clk 01:03:46]} {[%emt 00:03:28]} 25. g4 {[%clk 01:09:13]}
{[%emt 00:03:04]} Ra8 {[%clk 00:58:43]} {[%emt 00:05:31]} 1/2-1/2

[Event "SS Manhem Chess Week 2022: Goteborg Open"]
[Site "Schackcentrum, Vegagatan 20, Gothenburg, Sweden"]
[Date "2022.08.14"]
[Round "8.11"]
[White "Kosmidis, Thomas"]
[Black "Fransson, Lennart"]
[Result "1-0"]
[TimeControl "15 minutes + 5 seconds per move from move one (Round 1 - 4) / 90 minutes + 30 seconds per move from move one (Round 5 - 8)"]
[WhiteFideId "1753380"]
[BlackFideId "1706756"]
[WhiteElo "1673"]
[BlackElo "1958"]

1. d4 {[%clk 01:30:50]} {[%emt 00:00:09]} Nf6 {[%clk 01:30:58]} {[%emt
00:00:02]} 2. Nf3 {[%clk 01:30:59]} {[%emt 00:00:21]} g6 {[%clk 01:31:03]}
{[%emt 00:00:24]} 3. g3 {[%clk 01:31:01]} {[%emt 00:00:28]} Bg7 {[%clk
01:31:25]} {[%emt 00:00:08]} 4. Bg2 {[%clk 01:30:48]} {[%emt 00:00:42]} O-O
{[%clk 01:31:51]} {[%emt 00:00:05]} 5. c4 {[%clk 01:30:31]} {[%emt 00:00:47]}
c5 {[%clk 01:32:18]} {[%emt 00:00:02]} 6. d5 {[%clk 01:25:30]} {[%emt
00:05:33]} d6 {[%clk 01:32:46]} {[%emt 00:00:02]} 7. Nc3 {[%clk 01:25:39]}
{[%emt 00:00:21]} Na6 {[%clk 01:33:07]} {[%emt 00:00:08]} 8. e4 {[%clk
01:23:28]} {[%emt 00:02:41]} Bd7 {[%clk 01:33:29]} {[%emt 00:00:09]} 9. O-O
{[%clk 01:23:43]} {[%emt 00:00:14]} Nc7 {[%emt 00:02:05]} 10. e5 {[%clk
01:19:33]} {[%emt 00:02:43]} Nfe8 {[%clk 01:32:41]} {[%emt 00:01:41]} 11. Re1
{[%clk 01:18:52]} {[%emt 00:01:10]} Rb8 {[%clk 01:32:54]} {[%emt 00:00:17]} 12.
Bf4 {[%clk 01:08:21]} {[%emt 00:10:59]} b5 {[%clk 01:32:42]} {[%emt 00:00:43]}
13. Ne4 {[%clk 00:58:30]} {[%emt 00:10:20]} Bf5 {[%clk 01:32:28]} {[%emt
00:00:43]} 14. exd6 {[%clk 00:56:11]} {[%emt 00:02:51]} exd6 {[%clk 01:30:07]}
{[%emt 00:02:51]} 15. cxb5 {[%clk 00:50:27]} {[%emt 00:06:15]} Rxb5 {[%clk
01:30:05]} {[%emt 00:00:33]} 16. Rb1 {[%clk 00:46:47]} {[%emt 00:04:10]} Rxb2
{[%clk 01:29:42]} {[%emt 00:00:52]} 17. Rxb2 {[%clk 00:47:12]} {[%emt
00:00:06]} Bxb2 {[%clk 01:30:00]} {[%emt 00:00:11]} 18. Qb3 {[%clk 00:45:58]}
{[%emt 00:01:44]} Bg7 {[%clk 01:30:11]} {[%emt 00:00:19]} 19. Nfd2 {[%clk
00:42:14]} {[%emt 00:04:14]} Bxe4 {[%clk 01:27:58]} {[%emt 00:02:42]} 20. Nxe4
{[%clk 00:40:05]} {[%emt 00:02:39]} h6 {[%clk 01:26:13]} {[%emt 00:02:15]} 21.
h4 {[%clk 00:37:16]} {[%emt 00:03:19]} Kh7 {[%clk 01:26:23]} {[%emt 00:00:19]}
22. Qb7 {[%clk 00:36:39]} {[%emt 00:01:08]} f5 {[%clk 01:26:00]} {[%emt
00:00:53]} 23. Nd2 {[%clk 00:35:53]} {[%emt 00:01:16]} g5 {[%clk 01:26:07]}
{[%emt 00:00:23]} 24. hxg5 {[%clk 00:31:56]} {[%emt 00:04:27]} hxg5 {[%clk
01:26:13]} {[%emt 00:00:24]} 25. Be3 {[%clk 00:27:54]} {[%emt 00:04:33]} f4
{[%clk 01:26:15]} {[%emt 00:00:27]} 26. gxf4 {[%clk 00:27:19]} {[%emt
00:01:06]} gxf4 {[%clk 01:26:42]} {[%emt 00:00:02]} 27. Bxc5 {[%clk 00:27:35]}
{[%emt 00:00:14]} dxc5 {[%clk 01:26:38]} {[%emt 00:00:34]} 28. Qb3 {[%clk
00:19:35]} {[%emt 00:08:29]} Nd6 {[%clk 01:18:49]} {[%emt 00:08:20]} 29. Ne4
{[%clk 00:16:50]} {[%emt 00:03:15]} c4 {[%clk 01:12:35]} {[%emt 00:06:44]} 30.
Qh3+ {[%clk 00:09:15]} {[%emt 00:08:05]} Kg8 {[%clk 01:12:08]} {[%emt
00:00:57]} 31. Nc5 {[%clk 00:04:17]} {[%emt 00:05:29]} Rf6 {[%clk 00:59:49]}
{[%emt 00:12:47]} 32. Ne6 {[%clk 00:03:38]} {[%emt 00:01:09]} Qe7 {[%clk
00:59:10]} {[%emt 00:01:08]} 33. Rb1 {[%clk 00:03:01]} {[%emt 00:01:09]} Nxe6
{[%clk 00:58:53]} {[%emt 00:00:46]} 34. dxe6 {[%clk 00:03:12]} {[%emt
00:00:20]} Rf8 {[%clk 00:56:04]} {[%emt 00:03:18]} 35. Re1 {[%clk 00:00:51]}
{[%emt 00:02:51]} c3 {[%clk 00:54:04]} {[%emt 00:02:30]} 36. Bd5 {[%clk
00:00:56]} {[%emt 00:00:25]} c2 {[%clk 00:53:15]} {[%emt 00:01:20]} 37. Bb3
{[%clk 00:01:09]} {[%emt 00:00:18]} Rc8 {[%clk 00:51:02]} {[%emt 00:02:42]} 38.
Rc1 {[%clk 00:00:48]} {[%emt 00:00:51]} Qg5+ {[%clk 00:47:34]} {[%emt
00:03:57]} 39. Kh2 {[%clk 00:00:33]} {[%emt 00:00:47]} f3 {[%clk 00:47:05]}
{[%emt 00:00:58]} 1-0